bitfinex-derivatives/quotes_BNBF0:USTF0_20250708
["timestamp","ask_amount","ask_price","bid_price","bid_amount"]
[1751967509839,0.26329229,661.12,660.79,1.70056459]
[1751967512638,0.26329229,661.12,660.8,1.70056459]
[1751967513243,0.26329229,661.12,660.81,1.70056459]
[1751967515244,0.26329229,661.12,660.82,1.70056459]
[1751967516241,0.26329229,661.12,660.81,1.70056459]
[1751967517349,1.00910157,661.45,660.82,1.70056459]
[1751967517548,0.26322657,661.29,660.89,1.70056459]
[1751967518147,0.26322657,661.29,660.9,1.70056459]
[1751967518343,0.26322657,661.29,660.87,1.70056459]
[1751967518744,0.26322657,661.29,660.95,1.70056459]
[1751967518943,0.26322657,661.29,660.9,1.70056459]
[1751967519444,0.26322657,661.29,660.89,1.70056459]
[1751967519744,0.26322657,661.29,660.91,1.70056459]
[1751967520344,0.26322657,661.29,660.46,0.26325544]
[1751967520345,0.26322657,661.29,660.87,1.70056459]
[1751967520553,0.26322657,661.29,660.86,1.70056459]
[1751967522347,0.26322657,661.29,660.85,1.70056459]
[1751967524052,0.26322657,661.29,660.81,1.70056459]
[1751967524248,0.26322657,661.29,660.8,1.70056459]
[1751967525752,0.26322657,661.29,660.83,1.70056459]
[1751967529250,0.26322657,661.29,660.82,1.70056459]
[1751967529654,0.26322657,661.29,660.83,1.70056459]
[1751967529954,0.26322657,661.29,660.82,1.70056459]
[1751967530455,0.26322657,661.29,660.81,1.70056459]
[1751967531857,0.26322657,661.29,660.46,0.26325544]
[1751967531858,0.26322657,661.29,660.72,1.70056459]
[1751967532051,1.7020263,661.64,660.7,1.70056459]
[1751967532253,0.2631768,661.44,660.9,1.70056459]
[1751967533355,0.2631768,661.44,660.89,1.70056459]
[1751967534556,0.2631768,661.44,660.77,1.70056459]
[1751967534860,0.2631768,661.44,660.79,1.70056459]
[1751967535165,0.2631768,661.44,660.46,0.26325544]
[1751967535166,0.2631768,661.44,660.91,1.70056459]
[1751967536151,0.2631768,661.44,660.9,1.70056459]
[1751967536753,0.2631768,661.44,660.89,1.70056459]
[1751967537354,0.2631768,661.44,660.88,1.70056459]
[1751967537759,0.2631768,661.44,660.89,1.70056459]
[1751967537954,0.2631768,661.44,660.79,1.70056459]
[1751967540356,0.2631768,661.44,660.8,1.70056459]
[1751967541856,0.2631768,661.44,660.46,0.26325544]
[1751967541857,0.2631768,661.44,660.81,1.70056459]
[1751967542760,0.2631768,661.44,660.83,1.70056459]
[1751967542957,0.2631768,661.44,660.82,1.70056459]
[1751967543156,0.2631768,661.44,660.83,1.70056459]
[1751967543360,0.2631768,661.44,660.81,1.70056459]
[1751967543756,0.2631768,661.44,660.82,1.70056459]
[1751967545460,0.2631768,661.44,660.64,2.26226287]
[1751967545657,0.2631768,661.44,660.82,1.69069977]
[1751967545859,0.2631768,661.44,660.83,1.69069977]
[1751967546561,0.2631768,661.44,660.84,1.69069977]
[1751967548958,0.2631768,661.44,660.85,1.69069977]
[1751967550164,0.2631768,661.44,660.86,1.69069977]
[1751967550564,0.2631768,661.44,660.84,1.69069977]
[1751967552768,0.2631768,661.44,660.85,1.69069977]
[1751967555963,0.2631768,661.44,660.84,1.69069977]
[1751967558365,0.2631768,661.44,660.85,1.69069977]
[1751967559768,0.2631768,661.44,660.68,2.26226287]
[1751967559970,0.2631768,661.44,660.84,1.69128973]
[1751967560271,0.2631768,661.44,660.85,1.69128973]
[1751967560866,0.2631768,661.44,660.5,3.40056181]
[1751967560867,0.2631768,661.44,660.83,1.69128973]
[1751967561168,0.2631768,661.44,660.75,1.69128973]
[1751967561367,0.2631768,661.44,660.7,1.69128973]
[1751967561672,1.0069487,661.43,660.7,1.69128973]
[1751967561968,1.69456641,660.76,659.98,1.69128973]
[1751967562173,1.69456641,660.83,659.91,1.69128973]
[1751967562372,1.0069487,660.82,659.86,1.69128973]
[1751967562566,1.0069487,660.85,659.86,1.69128973]
[1751967562768,1.0069487,660.84,659.86,1.69128973]
[1751967562967,1.69456641,660.74,659.75,0.26340887]
[1751967563270,1.69456641,660.79,659.75,0.26340887]
[1751967563668,3.40251028,661.21,659.75,0.26340887]
[1751967563669,1.0069487,660.8,660.48,1.69128973]
[1751967563873,1.0069487,660.79,660.47,1.69128973]
[1751967564067,2.25238301,661.41,660.25,1.69128973]
[1751967564268,1.69456641,661.42,659.75,0.26340887]
[1751967564269,1.69456641,660.89,659.75,0.26340887]
[1751967564470,2.70151511,660.88,659.75,0.26340887]
[1751967564667,1.0069487,660.87,659.75,0.26340887]
[1751967564868,1.0069487,660.86,659.75,0.26340887]
[1751967565068,1.0069487,660.87,659.75,0.26340887]
[1751967565272,1.0069487,660.86,659.75,0.26340887]
[1751967565472,2.70151511,660.85,659.75,0.26340887]
[1751967565668,1.0069487,660.84,659.75,0.26340887]
[1751967566374,1.0069487,660.87,659.75,0.26340887]
[1751967566573,1.0069487,660.9,659.75,0.26340887]
[1751967566770,1.0069487,660.89,659.75,0.26340887]
[1751967567071,1.0069487,660.88,659.75,0.26340887]
[1751967567270,1.0069487,660.9,659.75,0.26340887]
[1751967567774,2.24428225,660.97,659.75,0.26340887]
[1751967567977,1.0069487,660.96,659.75,0.26340887]
[1751967568174,1.69456641,660.88,659.75,0.26340887]
[1751967568372,1.0069487,660.87,659.75,0.26340887]
[1751967568577,1.0069487,660.86,659.75,0.26340887]
[1751967568773,1.0069487,660.85,659.75,0.26340887]
[1751967568978,1.0069487,660.84,659.75,0.26340887]
[1751967569173,1.0069487,660.83,659.75,0.26340887]
[1751967569375,1.69456641,660.85,659.75,0.26340887]
[1751967569578,1.0069487,660.85,659.34,1.69128973]
[1751967569777,2.70151511,660.84,659.68,0.2636144]
[1751967569979,1.0069487,660.83,659.68,0.2636144]
[1751967570275,1.0069487,660.89,659.68,0.2636144]
[1751967570476,1.0069487,660.9,659.68,0.2636144]
[1751967570676,1.0069487,660.89,659.68,0.2636144]
[1751967570880,2.70151511,660.89,659.68,0.2636144]
[1751967571081,1.69456641,660.85,659.68,0.2636144]
[1751967571277,1.69456641,660.87,659.68,0.2636144]
[1751967571581,1.69456641,660.93,659.68,0.2636144]
[1751967572082,3.92731654,660.95,659.68,0.2636144]
[1751967572277,5.67085048,662.37,659.68,0.2636144]
[1751967572278,2.23275013,660.94,659.68,0.2636144]
[1751967572581,1.69456641,660.91,659.68,0.2636144]
[1751967572779,1.69456641,660.92,659.68,0.2636144]
[1751967573186,1.69456641,660.93,659.68,0.2636144]
[1751967573385,1.69456641,660.99,659.68,0.2636144]
[1751967573780,1.69456641,660.96,659.68,0.2636144]
[1751967574185,1.69456641,660.98,659.68,0.2636144]
[1751967574381,1.69456641,660.99,659.68,0.2636144]
[1751967574683,1.69456641,660.94,659.68,0.2636144]
[1751967575186,1.69456641,660.96,659.68,0.2636144]
[1751967575385,1.69456641,660.97,659.68,0.2636144]
[1751967575586,1.69456641,660.96,659.68,0.2636144]
[1751967575887,0.99307146,661.07,659.68,0.2636144]
[1751967575888,1.69456641,660.94,659.68,0.2636144]
[1751967576084,1.69456641,660.95,659.68,0.2636144]
[1751967576485,1.69456641,660.94,659.68,0.2636144]
[1751967576685,1.69456641,660.92,659.68,0.2636144]
[1751967576886,1.69456641,660.93,659.68,0.2636144]
[1751967577086,1.69456641,660.94,659.68,0.2636144]
[1751967577387,1.69456641,660.97,659.68,0.2636144]
[1751967577590,1.69456641,660.98,659.68,0.2636144]
[1751967577888,3.91366596,660.98,659.68,0.2636144]
[1751967578090,2.21909955,660.97,659.68,0.2636144]
[1751967578291,1.69456641,660.99,659.68,0.2636144]
[1751967578590,3.40251028,661.25,659.68,0.2636144]
[1751967578591,1.69456641,661.0,659.68,0.2636144]
[1751967579290,1.69456641,661.02,659.68,0.2636144]
[1751967579690,1.69456641,661.03,659.68,0.2636144]
[1751967580190,1.69456641,661.04,659.68,0.2636144]
[1751967580389,1.69456641,661.06,659.68,0.2636144]
[1751967581093,1.69456641,661.07,659.68,0.2636144]
[1751967581693,1.69456641,661.05,659.68,0.2636144]
[1751967582394,1.69456641,661.06,659.68,0.2636144]
[1751967582791,1.69456641,661.04,659.68,0.2636144]
[1751967582995,1.69456641,661.03,659.68,0.2636144]
[1751967583192,1.69456641,661.04,659.68,0.2636144]
[1751967583392,0.98914865,661.04,659.68,0.2636144]
[1751967583592,1.69456641,661.05,659.68,0.2636144]
[1751967583795,1.69456641,661.04,659.68,0.2636144]
[1751967583994,1.69456641,661.05,659.68,0.2636144]
[1751967584191,1.69456641,661.06,659.68,0.2636144]
[1751967584396,1.69456641,661.07,659.68,0.2636144]
[1751967584594,1.69456641,661.06,659.68,0.2636144]
[1751967585298,1.69456641,661.07,659.68,0.2636144]
[1751967585997,1.69456641,661.06,659.68,0.2636144]
[1751967586197,1.69456641,661.07,659.68,0.2636144]
[1751967586694,1.69456641,661.06,659.68,0.2636144]
[1751967587294,1.69456641,661.07,659.68,0.2636144]
[1751967587998,1.69456641,661.13,659.68,0.2636144]
[1751967589304,1.69456641,661.14,659.68,0.2636144]
[1751967589699,1.69456641,661.1,659.68,0.2636144]
[1751967590797,1.69456641,661.09,659.68,0.2636144]
[1751967591296,1.69456641,661.08,659.68,0.2636144]
[1751967591501,0.40562656,661.2,659.68,0.2636144]
[1751967591502,1.69456641,661.09,659.68,0.2636144]
[1751967591799,1.69456641,661.08,659.68,0.2636144]
[1751967592202,1.69456641,661.09,659.68,0.2636144]
[1751967593203,1.69456641,661.1,659.68,0.2636144]
[1751967593901,2.68232469,661.1,659.68,0.2636144]
[1751967594105,1.69456641,661.1,659.68,0.2636144]
[1751967594302,1.69456641,661.09,659.68,0.2636144]
[1751967594505,1.69456641,661.1,659.68,0.2636144]
[1751967594902,1.69456641,661.09,659.68,0.2636144]
[1751967595401,1.69456641,661.08,659.68,0.2636144]
[1751967595602,1.69456641,661.07,659.68,0.2636144]
[1751967596400,1.69456641,661.06,659.68,0.2636144]
[1751967597208,1.69456641,661.05,659.68,0.2636144]
[1751967597609,1.69456641,661.06,659.68,0.2636144]
[1751967598108,1.69456641,661.05,659.68,0.2636144]
[1751967598404,1.69456641,661.1,659.68,0.2636144]
[1751967600506,1.69456641,661.11,659.68,0.2636144]
[1751967601508,1.69456641,661.1,659.68,0.2636144]
[1751967602305,1.69456641,661.09,659.68,0.2636144]
[1751967603510,1.69456641,661.08,659.68,0.2636144]
[1751967604406,1.69456641,661.07,659.68,0.2636144]
[1751967605209,1.69456641,661.06,659.68,0.2636144]
[1751967606313,1.69456641,661.05,659.68,0.2636144]
[1751967607115,1.69456641,661.04,659.68,0.2636144]
[1751967607315,1.69456641,661.06,659.68,0.2636144]
[1751967608212,1.69456641,661.03,659.68,0.2636144]
[1751967608410,1.69456641,661.04,659.68,0.2636144]
[1751967609113,1.69456641,661.02,659.68,0.2636144]
[1751967610013,1.69456641,661.03,659.68,0.2636144]
[1751967610214,1.69456641,661.01,659.68,0.2636144]
[1751967611212,1.69456641,660.99,659.68,0.2636144]
[1751967612316,1.69456641,660.97,659.68,0.2636144]
[1751967612516,0.98995433,660.96,659.68,0.2636144]
[1751967612722,0.98995433,660.95,659.68,0.2636144]
[1751967613018,1.69456641,660.97,659.68,0.2636144]
[1751967613217,1.69456641,660.95,659.68,0.2636144]
[1751967613421,0.98995433,660.94,659.68,0.2636144]
[1751967613622,0.98995433,660.93,659.68,0.2636144]
[1751967613821,0.98995433,660.92,659.68,0.2636144]
[1751967614116,0.98995433,660.91,659.68,0.2636144]
[1751967614321,0.98995433,660.9,659.68,0.2636144]
[1751967614617,0.98995433,660.89,659.68,0.2636144]
[1751967614820,0.98995433,660.88,659.68,0.2636144]
[1751967615018,0.98995433,660.87,659.68,0.2636144]
[1751967615222,0.98995433,660.86,659.68,0.2636144]
[1751967615523,0.98995433,660.85,659.68,0.2636144]
[1751967615720,0.98995433,660.84,659.68,0.2636144]
[1751967615919,0.98995433,660.83,659.68,0.2636144]
[1751967616120,0.98995433,660.82,659.68,0.2636144]
[1751967616320,0.98995433,660.81,659.68,0.2636144]
[1751967616523,0.98995433,660.8,659.68,0.2636144]
[1751967616720,0.98995433,660.79,659.68,0.2636144]
[1751967616926,0.98995433,660.78,659.68,0.2636144]
[1751967617220,0.98995433,660.77,659.68,0.2636144]
[1751967617424,0.98995433,660.76,659.68,0.2636144]
[1751967617626,0.98995433,660.75,659.68,0.2636144]
[1751967617827,0.98995433,660.74,659.68,0.2636144]
[1751967618027,0.98995433,660.73,659.68,0.2636144]
[1751967618324,0.98995433,660.72,659.68,0.2636144]
[1751967618626,0.98995433,660.71,659.68,0.2636144]
[1751967618827,0.98995433,660.78,659.68,0.2636144]
[1751967619124,1.69456641,660.75,659.68,0.2636144]
[1751967619623,2.68452074,660.75,659.68,0.2636144]
[1751967619823,1.69456641,660.74,659.68,0.2636144]
[1751967620327,1.69456641,660.69,659.68,0.2636144]
[1751967621128,1.69456641,660.64,659.71,1.69128973]
[1751967621424,1.69456641,660.64,659.72,1.69128973]
[1751967622123,1.69456641,660.67,659.68,1.95490413]
[1751967622326,0.4088093,660.84,659.68,1.95490413]
[1751967622327,1.69456641,660.66,659.68,1.95490413]
[1751967622624,2.26589895,660.91,659.68,1.95490413]
[1751967622625,1.69456641,660.67,659.69,1.69128973]
[1751967624229,1.69456641,660.58,659.78,1.69128973]
[1751967624431,1.69456641,660.58,659.79,1.69128973]
[1751967625233,1.69456641,660.57,659.79,1.69128973]
[1751967626130,1.69456641,660.58,659.78,1.69128973]
[1751967627230,1.69456641,660.57,659.79,1.69128973]
[1751967627935,1.69456641,660.56,659.8,1.69128973]
[1751967628133,1.69456641,660.55,659.81,1.69128973]
[1751967628335,1.69456641,660.56,659.82,1.69128973]
[1751967628535,1.69456641,660.56,659.81,1.69128973]
[1751967630237,1.69456641,660.56,659.82,1.69128973]
[1751967630438,1.69456641,660.57,659.8,1.69128973]
[1751967630639,1.69456641,660.48,659.96,1.69128973]
[1751967631041,1.69456641,660.5,659.98,1.69128973]
[1751967631640,1.69456641,660.48,660.0,1.69128973]
[1751967632140,1.69456641,660.52,659.94,1.69128973]
[1751967632540,1.69456641,660.53,659.92,1.69128973]
[1751967633150,1.69456641,660.53,659.68,0.2636144]
[1751967633151,1.69456641,660.53,659.94,1.69128973]
[1751967633546,1.69456641,660.55,659.91,1.69128973]
[1751967633842,1.69456641,660.56,659.92,1.69128973]
[1751967634343,1.69456641,660.57,659.9,1.69128973]
[1751967634551,1.69456641,660.57,659.89,1.69128973]
[1751967634853,1.69456641,660.58,659.89,1.69128973]
[1751967635547,1.69456641,660.56,659.91,1.69128973]
[1751967635747,1.69456641,660.57,659.92,1.69128973]
[1751967636154,1.69456641,660.55,659.95,1.69128973]
[1751967636545,1.69456641,660.53,659.98,1.69128973]
[1751967637450,1.69456641,660.54,659.98,1.69128973]
[1751967637649,1.69456641,660.53,659.98,1.69128973]
[1751967639552,1.69456641,660.54,659.98,1.69128973]
[1751967640748,1.69456641,660.51,660.03,1.69128973]
[1751967640949,1.69456641,660.53,660.04,1.69128973]
[1751967641150,1.69456641,660.54,660.04,1.69128973]
[1751967641349,1.69456641,660.57,660.04,1.69128973]
[1751967642054,1.69456641,660.59,660.01,1.69128973]
[1751967642255,1.69456641,660.58,660.01,1.69128973]
[1751967642452,1.69456641,660.59,660.01,1.69128973]
[1751967642657,1.69456641,660.57,660.03,1.69128973]
[1751967642854,1.69456641,660.58,660.04,1.69128973]
[1751967643555,1.69456641,660.59,660.04,1.69128973]
[1751967644452,1.69456641,660.59,660.03,1.69128973]
[1751967644653,1.69456641,660.59,660.04,1.69128973]
[1751967644956,1.69456641,660.56,660.08,1.69128973]
[1751967646754,1.69456641,660.56,659.68,0.2636144]
[1751967646755,1.69456641,660.57,660.07,1.69128973]
[1751967647756,1.01056488,660.63,659.95,1.69128973]
[1751967647956,1.69456641,660.69,659.98,1.69128973]
[1751967648460,1.69456641,660.7,659.97,1.69128973]
[1751967648857,1.69456641,660.69,659.97,1.69128973]
[1751967649457,1.69456641,660.7,659.97,1.69128973]
[1751967650558,1.69456641,660.7,659.96,1.69128973]
[1751967652458,1.69456641,660.71,659.96,1.69128973]
[1751967653659,1.69456641,660.71,659.95,1.69128973]
[1751967654257,1.69456641,660.72,659.95,1.69128973]
[1751967657466,1.69456641,660.73,659.94,1.69128973]
[1751967657667,1.69456641,660.68,660.01,1.69128973]
[1751967657868,1.69456641,660.69,659.99,1.69128973]
[1751967658068,1.69456641,660.69,659.81,2.26226287]
[1751967658069,1.69456641,660.69,660.0,1.69128973]
[1751967658867,1.69456641,660.69,659.99,1.69128973]
[1751967659470,1.69456641,660.68,660.0,1.69128973]
[1751967660072,1.69456641,660.68,660.01,1.69128973]
[1751967661373,1.69456641,660.69,660.0,1.69128973]
[1751967661674,1.69456641,660.7,659.99,1.69128973]
[1751967662476,1.69456641,660.71,659.97,1.69128973]
[1751967663271,1.69456641,660.7,659.99,1.69128973]
[1751967663973,1.69456641,660.7,659.98,1.69128973]
[1751967664177,1.69456641,660.7,659.99,1.69128973]
[1751967665573,1.69456641,660.7,659.68,0.2636144]
[1751967665574,1.69456641,660.71,659.97,1.69128973]
[1751967666073,1.69456641,660.71,659.68,0.2636144]
[1751967666074,1.69456641,660.71,659.98,1.69128973]
[1751967667576,1.69456641,660.7,659.99,1.69128973]
[1751967668978,1.69456641,660.71,659.97,1.69128973]
[1751967669180,1.69456641,660.7,659.98,1.69128973]
[1751967669780,1.69456641,660.7,659.99,1.69128973]
[1751967673283,1.69456641,660.69,659.99,1.69128973]
[1751967673784,1.69456641,660.69,659.98,1.69128973]
[1751967675181,1.69456641,660.67,660.01,1.69128973]
[1751967678991,1.69456641,660.66,660.03,1.69128973]
[1751967679592,1.69456641,660.65,660.03,1.69128973]
[1751967679886,0.41396391,660.79,660.05,1.69128973]
[1751967679887,1.69456641,660.64,660.05,1.69128973]
[1751967680393,1.69456641,660.64,660.06,1.69128973]
[1751967681088,1.69456641,660.64,660.05,1.69128973]
[1751967681395,1.69456641,660.64,660.06,1.69128973]
[1751967682292,1.69456641,660.63,660.06,1.69128973]
[1751967682696,1.69456641,660.64,660.04,1.69128973]
[1751967683492,1.69456641,660.64,660.05,1.69128973]
[1751967683796,1.69456641,660.63,660.06,1.69128973]
[1751967686401,1.69456641,660.63,660.07,1.69128973]
[1751967687202,1.69456641,660.62,660.07,1.69128973]
[1751967687406,1.69456641,660.62,660.08,1.69128973]
[1751967687605,1.69456641,660.61,660.08,1.69128973]
[1751967688202,1.69456641,660.63,660.06,1.69128973]
[1751967688701,1.69456641,660.64,660.04,1.69128973]
[1751967689503,1.69456641,660.64,660.05,1.69128973]
[1751967689807,1.69456641,660.63,660.05,1.69128973]
[1751967691307,1.69456641,660.63,660.06,1.69128973]
[1751967691508,1.69456641,660.62,660.06,1.69128973]
[1751967692008,1.69456641,660.62,660.07,1.69128973]
[1751967693510,1.69456641,660.61,660.07,1.69128973]
[1751967694010,1.69456641,660.6,660.09,1.69128973]
[1751967696312,1.69456641,660.59,660.1,1.69128973]
[1751967696614,1.69456641,660.57,660.13,1.69128973]
[1751967699417,1.69456641,660.58,660.11,1.69128973]
[1751967700018,1.69456641,660.6,660.09,1.69128973]
[1751967700215,1.69456641,660.61,660.07,1.69128973]
[1751967700418,1.69456641,660.61,660.08,1.69128973]
[1751967700714,1.69456641,660.6,660.08,1.69128973]
[1751967701013,1.69456641,660.6,660.07,1.69128973]
[1751967701214,1.69456641,660.6,660.08,1.69128973]
[1751967703819,1.69456641,660.59,660.08,1.69128973]
[1751967704120,1.69456641,660.6,660.08,1.69128973]
[1751967704316,1.69456641,660.61,660.07,1.69128973]
[1751967704516,1.69456641,660.6,660.07,1.69128973]
[1751967706421,1.69456641,660.62,660.05,1.69128973]
[1751967707518,1.69456641,660.61,660.05,1.69128973]
[1751967709222,1.69456641,660.61,659.86,2.26226287]
[1751967709223,1.69456641,660.61,660.06,1.69128973]
[1751967709923,1.69456641,660.6,660.07,1.69128973]
[1751967710133,1.69456641,660.61,660.07,1.69128973]
[1751967710828,1.69456641,660.61,660.08,1.69128973]
[1751967714223,1.69456641,660.6,660.09,1.69128973]
[1751967714426,1.69456641,660.61,660.08,1.69128973]
[1751967716131,1.69456641,660.59,660.1,1.69128973]
[1751967717933,1.69456641,660.6,660.09,1.69128973]
[1751967720030,1.69456641,660.59,660.1,1.69128973]
[1751967721631,1.69456641,660.58,660.12,1.69128973]
[1751967724338,1.69456641,660.57,660.13,1.69128973]
[1751967726637,1.69456641,660.57,660.14,1.69128973]
[1751967726837,1.69456641,660.58,660.12,1.69128973]
[1751967727938,1.69456641,660.59,660.1,1.69128973]
[1751967728641,1.69456641,660.6,660.09,1.69128973]
[1751967732641,0.26353255,660.48,660.09,1.69128973]
[1751967733842,0.26353255,660.48,659.92,2.26226287]
[1751967733843,0.26353255,660.48,660.08,1.69128973]
[1751967736143,0.26353255,660.48,660.06,1.69128973]
[1751967736947,0.26353255,660.48,660.07,1.69128973]
[1751967737342,0.26353255,660.48,660.05,1.69128973]
[1751967737647,0.26353255,660.48,660.06,1.69128973]
[1751967739544,0.26353255,660.48,660.05,1.69128973]
[1751967742154,0.26353255,660.48,660.06,1.69128973]
[1751967746159,0.26353255,660.48,660.07,1.69128973]
[1751967746655,0.26353255,660.48,659.68,0.2636144]
[1751967746656,0.26353255,660.48,660.06,1.69128973]
[1751967747060,0.26353255,660.48,660.07,1.69128973]
[1751967747260,0.26353255,660.48,660.08,1.69128973]
[1751967748360,0.26353255,660.48,660.07,1.69128973]
[1751967748757,0.26353255,660.48,660.08,1.69128973]
[1751967750172,0.26353255,660.48,660.09,1.69128973]
[1751967750557,0.26353255,660.48,660.1,1.69128973]
[1751967751761,0.26353255,660.48,660.09,1.69128973]
[1751967753158,0.26353255,660.48,660.1,1.69128973]
[1751967756569,0.26353255,660.48,659.68,0.2636144]
[1751967756570,0.26353255,660.48,660.12,1.69128973]
[1751967757671,0.26353255,660.48,660.09,1.69128973]
[1751967758070,0.26353255,660.48,660.08,1.69128973]
[1751967758269,0.26353255,660.48,659.68,0.2636144]
[1751967758270,0.26353255,660.48,660.09,1.69128973]
[1751967758469,0.26353255,660.48,660.1,1.69128973]
[1751967758972,0.26353255,660.48,660.09,1.69128973]
[1751967759174,0.26353255,660.48,660.1,1.69128973]
[1751967761176,0.26353255,660.48,660.11,1.69128973]
[1751967767382,0.26353255,660.48,660.09,1.69128973]
[1751967767578,0.26353255,660.48,660.12,1.69128973]
[1751967771185,0.26353255,660.48,660.13,1.69128973]
[1751967773880,0.26353255,660.48,660.12,1.69128973]
[1751967777188,0.26353255,660.48,659.72,0.26354552]
[1751967777189,0.26353255,660.48,660.14,1.69128973]
[1751967781586,0.26353255,660.48,660.12,1.69128973]
[1751967783786,0.26353255,660.48,660.14,1.69128973]
[1751967789595,0.26353255,660.48,660.12,1.69128973]
[1751967791292,0.26353255,660.48,660.13,1.69128973]
[1751967792696,0.26353255,660.48,660.14,1.69128973]
[1751967797098,0.26353255,660.48,660.12,1.69128973]
[1751967799094,0.26353255,660.48,660.1,1.69128973]
[1751967799593,0.26353255,660.48,660.12,1.69128973]
[1751967799991,0.26353255,660.48,660.11,1.69128973]
[1751967800194,0.26353255,660.48,660.12,1.69128973]
[1751967800997,0.26353255,660.48,660.1,1.69128973]
[1751967801192,0.26353255,660.48,659.93,2.26226287]
[1751967801193,0.26353255,660.48,660.09,1.69128973]
[1751967803898,0.26353255,660.48,660.08,1.69128973]
[1751967806100,0.26353255,660.48,659.72,0.26354552]
[1751967806101,0.26353255,660.48,660.09,1.69128973]
[1751967806995,0.26353255,660.48,660.08,1.69128973]
[1751967807196,0.26353255,660.48,660.1,1.69128973]
[1751967807697,0.26353255,660.48,660.09,1.69128973]
[1751967807900,0.26353255,660.48,660.1,1.69128973]
[1751967808494,0.26353255,660.48,659.72,0.26354552]
[1751967808495,0.26353255,660.48,660.11,1.69128973]
[1751967810802,0.26353255,660.48,660.13,1.69128973]
[1751967812800,0.26353255,660.48,660.11,1.69128973]
[1751967813703,0.26353255,660.48,660.12,1.69128973]
[1751967815206,0.26353255,660.48,660.13,1.69128973]
[1751967815410,0.26353255,660.48,660.12,1.69128973]
[1751967815610,0.26353255,660.48,659.72,0.26354552]
[1751967888161,0.26354652,660.53,659.72,0.26354552]
[1751967888662,0.26354452,660.54,659.72,0.26354552]
[1751967890166,0.26353454,675.2,659.72,0.26354552]
[1751967970036,0.26353454,675.2,462.31,0.03244576]
[1751967970335,0.26353454,675.2,659.82,0.26351459]
[1751967970539,0.26353454,675.2,462.31,0.03244576]
[1751967970837,0.26353454,675.2,659.88,0.26351459]
[1751967971136,0.26353454,675.2,462.31,0.03244576]
[1751967972340,0.26353454,675.2,649.57,0.26351459]
[1751968033178,0.26351459,672.66,652.64,0.26351459]
[1751968033377,0.26351459,672.66,462.31,0.03244576]
[1751968034580,0.26351459,672.66,648.93,0.26351459]
[1751968108040,0.26351459,672.66,462.36,0.03244225]
[1751968108440,0.26360241,670.53,649.69,0.26360241]
[1751968227354,0.26360241,670.53,462.23,0.03245137]
[1751968227754,0.26361839,670.53,650.15,0.26361839]
[1751968288105,0.26361839,670.53,462.23,0.03245137]
[1751968288407,0.26360641,670.53,650.43,0.26360641]
[1751968347550,0.26360641,670.53,462.23,0.03245137]
[1751968355655,2.254188,680.34,462.14,0.03245769]
[1751968355853,2.254188,680.33,462.14,0.03245769]
[1751968356152,2.6671706,680.32,462.14,0.03245769]
[1751968356354,0.26364236,670.51,650.59,0.26364236]
[1751968356657,2.6671706,670.5,650.59,0.26364236]
[1751968356856,2.6671706,670.49,650.59,0.26364236]
[1751968357057,2.6671706,670.48,650.59,0.26364236]
[1751968357357,2.6671706,670.47,650.59,0.26364236]
[1751968357555,1.6965287,660.51,659.93,1.7004566]
[1751968357755,1.6965287,660.5,659.94,1.7004566]
[1751968357957,1.6965287,660.5,659.8,2.2672755]
[1751968357958,1.6965287,660.51,659.92,1.7004566]
[1751968358760,1.6965287,660.49,659.95,1.7004566]
[1751968359456,1.6965287,660.53,659.89,1.7004566]
[1751968359760,1.6965287,660.52,659.91,1.7004566]
[1751968361060,1.6965287,660.46,659.99,1.7004566]
[1751968361462,1.6965287,660.46,660.0,1.7004566]
[1751968361762,1.6965287,660.46,659.99,1.7004566]
[1751968362359,1.6965287,660.46,660.0,1.7004566]
[1751968364766,1.6965287,660.46,659.99,1.7004566]
[1751968364963,1.6965287,660.48,659.96,1.7004566]
[1751968366063,1.6965287,660.5,659.94,1.7004566]
[1751968366266,1.6965287,660.51,659.96,1.7004566]
[1751968366761,1.6965287,660.53,659.94,1.7004566]
[1751968367169,1.6965287,660.54,659.93,1.7004566]
[1751968367366,1.6965287,660.53,659.93,1.7004566]
[1751968367570,1.6975461,660.53,659.93,1.7014763]
[1751968368773,1.6975461,660.56,659.88,1.7014763]
[1751968369872,1.6975461,660.58,659.86,1.7014763]
[1751968370569,1.6975461,660.57,659.87,1.7014763]
[1751968371274,1.6975461,660.56,659.88,1.7014763]
[1751968375172,1.6975461,660.56,659.89,1.7014763]
[1751968375371,1.6975461,660.55,659.89,1.7014763]
[1751968376776,1.6975461,660.54,659.91,1.7014763]
[1751968378672,1.6975461,660.56,659.88,1.7014763]
[1751968379776,1.6975461,660.55,659.9,1.7014763]
[1751968379977,1.6975461,660.54,659.91,1.7014763]
[1751968380176,1.6975461,660.54,659.92,1.7014763]
[1751968381278,1.6975461,660.54,659.91,1.7014763]
[1751968381778,1.6975461,660.55,659.9,1.7014763]
[1751968383377,1.6975461,660.54,659.9,1.7014763]
[1751968383977,1.6975461,660.53,659.92,1.7014763]
[1751968387682,1.6975461,660.53,659.91,1.7014763]
[1751968387981,1.6975461,660.54,659.91,1.7014763]
[1751968388478,1.6975461,660.52,659.94,1.7014763]
[1751968388875,1.6975461,660.52,658.35,7.9354644]
[1751968388876,1.6975461,660.53,659.92,1.7014763]